[Event "Paul Kerese Mälestusfestival 2022 Kiirturniir"]
[Site "Pärnu, Estonia Resort Hotel & Spa"]
[Date "2022.07.23"]
[Round "4.3"]
[White "Golubovskis, Maksims"]
[Black "Agafonov, Yuri"]
[Result "1-0"]
[TimeControl "15 minutit partiile + 3 sek käigule"]
[WhiteTitle "FM"]
[WhiteElo "2209"]
[BlackElo "2018"]

1. e4 {[%clk 00:15:04]} {[%emt 00:00:53]} g6 {[%clk 00:15:03]} {[%emt
00:00:04]} 2. d4 {[%clk 00:15:06]} {[%emt 00:00:01]} Bg7 {[%clk 00:15:05]} 3.
Nc3 {[%clk 00:15:08]} {[%emt 00:00:02]} d6 {[%clk 00:15:07]} 4. Be3 {[%clk
00:15:10]} {[%emt 00:00:02]} Nd7 {[%clk 00:15:03]} {[%emt 00:00:07]} 5. Qd2
{[%clk 00:15:08]} {[%emt 00:00:05]} a6 {[%clk 00:14:53]} {[%emt 00:00:13]} 6.
a4 {[%clk 00:14:29]} {[%emt 00:00:42]} b6 {[%clk 00:14:46]} {[%emt 00:00:10]} 7.
f4 {[%clk 00:14:07]} {[%emt 00:00:24]} Bb7 {[%clk 00:14:44]} {[%emt 00:00:06]}
8. d5 {[%clk 00:14:04]} {[%emt 00:00:07]} Ngf6 {[%clk 00:13:58]} {[%emt
00:00:49]} 9. Nf3 {[%clk 00:13:43]} {[%emt 00:00:23]} c5 {[%clk 00:13:11]}
{[%emt 00:00:51]} 10. h3 {[%clk 00:11:45]} {[%emt 00:02:01]} O-O {[%clk
00:12:24]} {[%emt 00:00:49]} 11. Bc4 {[%clk 00:11:16]} {[%emt 00:00:32]} Ne8
{[%clk 00:10:25]} {[%emt 00:02:03]} 12. O-O {[%clk 00:11:05]} {[%emt 00:00:12]}
Nc7 {[%clk 00:10:17]} {[%emt 00:00:13]} 13. Qe2 {[%clk 00:10:33]} {[%emt
00:00:35]} b5 {[%clk 00:08:51]} {[%emt 00:01:29]} 14. axb5 {[%clk 00:10:33]}
{[%emt 00:00:02]} axb5 {[%clk 00:08:53]} {[%emt 00:00:01]} 15. Rxa8 {[%clk
00:10:19]} {[%emt 00:00:17]} Qxa8 {[%clk 00:08:48]} {[%emt 00:00:08]} 16. Nxb5
{[%clk 00:10:14]} {[%emt 00:00:08]} Nxb5 {[%clk 00:08:08]} {[%emt 00:00:43]} 17.
Bxb5 {[%clk 00:10:15]} {[%emt 00:00:01]} Nf6 {[%clk 00:07:55]} {[%emt
00:00:16]} 18. Bf2 {[%clk 00:09:58]} {[%emt 00:00:20]} Nh5 {[%clk 00:06:55]}
{[%emt 00:01:04]} 19. Qd2 {[%clk 00:09:40]} {[%emt 00:00:20]} Qa2 {[%clk
00:05:55]} {[%emt 00:01:04]} 20. b3 {[%clk 00:09:09]} {[%emt 00:00:34]} Rb8
{[%clk 00:05:55]} {[%emt 00:00:02]} 21. Bc4 {[%clk 00:08:38]} {[%emt 00:00:34]}
Ba6 {[%clk 00:05:53]} {[%emt 00:00:05]} 22. Bxa6 {[%clk 00:08:36]} {[%emt
00:00:05]} Qxa6 {[%clk 00:05:55]} {[%emt 00:00:01]} 23. g4 {[%clk 00:08:20]}
{[%emt 00:00:19]} Nf6 {[%clk 00:05:56]} 24. Re1 {[%clk 00:08:17]} {[%emt
00:00:06]} Qa2 {[%clk 00:05:38]} {[%emt 00:00:21]} 25. Qd3 {[%clk 00:07:21]}
{[%emt 00:01:00]} Nd7 {[%clk 00:04:18]} {[%emt 00:01:23]} 26. e5 {[%clk
00:06:27]} {[%emt 00:00:57]} Rb4 {[%clk 00:03:59]} {[%emt 00:00:23]} 27. exd6
{[%clk 00:05:05]} {[%emt 00:01:25]} exd6 {[%clk 00:04:01]} {[%emt 00:00:01]} 28.
Re8+ {[%clk 00:04:42]} {[%emt 00:00:26]} Nf8 {[%clk 00:03:44]} {[%emt
00:00:21]} 29. f5 {[%clk 00:04:19]} {[%emt 00:00:26]} c4 {[%clk 00:03:28]}
{[%emt 00:00:18]} 30. bxc4 {[%clk 00:03:40]} {[%emt 00:00:43]} Rxc4 {[%clk
00:03:08]} {[%emt 00:00:23]} 31. Re2 {[%clk 00:03:28]} {[%emt 00:00:15]} Nd7
{[%clk 00:02:31]} {[%emt 00:00:40]} 32. fxg6 {[%clk 00:02:43]} {[%emt
00:00:48]} hxg6 {[%clk 00:02:32]} {[%emt 00:00:02]} 33. Re8+ {[%clk 00:01:48]}
{[%emt 00:00:57]} Nf8 {[%clk 00:02:27]} {[%emt 00:00:09]} 34. Re4 {[%clk
00:01:14]} {[%emt 00:00:37]} Rc3 {[%clk 00:02:15]} {[%emt 00:00:15]} 35. Qd1
{[%clk 00:00:35]} {[%emt 00:00:42]} Rxc2 {[%clk 00:02:01]} {[%emt 00:00:16]} 36.
Bh4 {[%clk 00:00:31]} {[%emt 00:00:06]} Qa7+ {[%clk 00:01:29]} {[%emt
00:00:36]} 37. Kh1 {[%clk 00:00:27]} {[%emt 00:00:08]} Qc5 {[%clk 00:01:29]}
{[%emt 00:00:03]} 38. Re1 {[%clk 00:00:21]} {[%emt 00:00:09]} Nd7 {[%clk
00:00:58]} {[%emt 00:00:34]} 39. Re8+ {[%clk 00:00:15]} {[%emt 00:00:09]} Nf8
{[%clk 00:00:49]} {[%emt 00:00:12]} 40. Re1 {[%clk 00:00:17]} {[%emt 00:00:01]}
Nd7 {[%clk 00:00:51]} {[%emt 00:00:01]} 41. Re8+ {[%clk 00:00:16]} {[%emt
00:00:04]} Bf8 {[%clk 00:00:36]} {[%emt 00:00:18]} 42. Re1 {[%clk 00:00:17]}
{[%emt 00:00:01]} Nb6 {[%clk 00:00:14]} {[%emt 00:00:25]} 43. Nd4 {[%clk
00:00:08]} {[%emt 00:00:13]} Qxd5+ {[%clk 00:00:13]} {[%emt 00:00:04]} 44. Nf3
{[%clk 00:00:10]} {[%emt 00:00:01]} Qc6 {[%clk 00:00:12]} {[%emt 00:00:03]} 45.
Kg1 {[%clk 00:00:09]} {[%emt 00:00:05]} Nc4 {[%emt 00:00:12]} 46. Qd3 {[%clk
00:00:09]} {[%emt 00:00:02]} Qc5+ {[%clk 00:00:04]} {[%emt 00:00:03]} 47. Kh1
{[%clk 00:00:10]} {[%emt 00:00:02]} Ne5 {[%clk 00:00:06]} {[%emt 00:00:01]} 48.
Nxe5 {[%clk 00:00:10]} {[%emt 00:00:03]} dxe5 {[%clk 00:00:08]} {[%emt
00:00:01]} 49. Rf1 {[%clk 00:00:06]} {[%emt 00:00:07]} Qc6+ {[%clk 00:00:09]}
{[%emt 00:00:02]} 50. Qf3 {[%clk 00:00:06]} {[%emt 00:00:03]} Qe6 {[%clk
00:00:10]} {[%emt 00:00:02]} 51. Re1 {[%clk 00:00:06]} {[%emt 00:00:03]} Rc4
{[%clk 00:00:09]} {[%emt 00:00:04]} 52. Bf6 {[%clk 00:00:04]} {[%emt 00:00:04]}
e4 {[%clk 00:00:10]} {[%emt 00:00:02]} 53. Qf4 {[%clk 00:00:04]} {[%emt
00:00:03]} Qc6 {[%clk 00:00:09]} {[%emt 00:00:05]} 54. Kg1 {[%clk 00:00:05]}
{[%emt 00:00:03]} Bc5+ {[%clk 00:00:09]} {[%emt 00:00:03]} 55. Kf1 {[%clk
00:00:07]} Bf8 {[%clk 00:00:10]} {[%emt 00:00:01]} 56. Kg1 {[%clk 00:00:09]}
{[%emt 00:00:01]} Ra4 {[%clk 00:00:09]} {[%emt 00:00:04]} 57. Bb2 {[%clk
00:00:05]} {[%emt 00:00:07]} Qb6+ {[%clk 00:00:11]} {[%emt 00:00:02]} 58. Qf2
{[%clk 00:00:06]} {[%emt 00:00:02]} e3 {[%clk 00:00:12]} {[%emt 00:00:02]} 59.
Rxe3 {[%clk 00:00:06]} {[%emt 00:00:03]} Bc5 {[%clk 00:00:13]} {[%emt
00:00:02]} 60. Re8+ {[%clk 00:00:07]} {[%emt 00:00:02]} Bf8 {[%clk 00:00:15]}
{[%emt 00:00:01]} 61. Qxb6 {[%clk 00:00:09]} {[%emt 00:00:01]} 1-0

[Event "Paul Kerese Mälestusfestival 2022 Kiirturniir"]
[Site "Pärnu, Estonia Resort Hotel & Spa"]
[Date "2022.07.23"]
[Round "4.4"]
[White "Vohla, Mihkel"]
[Black "Maiorov, Nikita"]
[Result "0-1"]
[TimeControl "15 minutit partiile + 3 sek käigule"]
[BlackTitle "GM"]
[WhiteElo "1720"]
[BlackElo "2431"]

1. e4 {[%clk 00:15:05]} {[%emt 00:00:04]} c6 {[%clk 00:15:04]} {[%emt
00:00:03]} 2. f4 {[%clk 00:15:05]} {[%emt 00:00:03]} d5 {[%clk 00:15:05]}
{[%emt 00:00:02]} 3. e5 {[%clk 00:15:06]} {[%emt 00:00:02]} c5 {[%clk
00:15:00]} {[%emt 00:00:08]} 4. Nf3 {[%clk 00:15:06]} {[%emt 00:00:02]} Nc6
{[%clk 00:15:02]} {[%emt 00:00:01]} 5. c4 {[%clk 00:15:06]} {[%emt 00:00:03]}
dxc4 {[%clk 00:14:43]} {[%emt 00:00:22]} 6. Bxc4 {[%clk 00:15:07]} {[%emt
00:00:02]} e6 {[%clk 00:14:42]} {[%emt 00:00:03]} 7. O-O {[%clk 00:15:04]}
{[%emt 00:00:06]} Nh6 {[%clk 00:14:43]} {[%emt 00:00:02]} 8. Nc3 {[%clk
00:15:01]} {[%emt 00:00:07]} Nf5 {[%clk 00:14:45]} {[%emt 00:00:01]} 9. Ne4
{[%clk 00:14:38]} {[%emt 00:00:25]} Be7 {[%clk 00:14:43]} {[%emt 00:00:06]} 10.
d3 {[%clk 00:14:24]} {[%emt 00:00:18]} a6 {[%clk 00:14:44]} {[%emt 00:00:02]}
11. a3 {[%clk 00:14:22]} {[%emt 00:00:05]} b5 {[%clk 00:14:45]} {[%emt
00:00:02]} 12. Ba2 {[%clk 00:14:22]} {[%emt 00:00:03]} Bb7 {[%clk 00:14:47]}
{[%emt 00:00:01]} 13. g4 {[%clk 00:14:14]} {[%emt 00:00:11]} Nfd4 {[%clk
00:14:48]} {[%emt 00:00:01]} 14. Be3 {[%clk 00:14:05]} {[%emt 00:00:12]} h5
{[%clk 00:14:50]} {[%emt 00:00:02]} 15. Nfg5 {[%clk 00:13:44]} {[%emt
00:00:24]} hxg4 {[%clk 00:14:13]} {[%emt 00:00:39]} 16. Qxg4 {[%clk 00:13:22]}
{[%emt 00:00:25]} Nc2 {[%clk 00:12:52]} {[%emt 00:01:24]} 17. Bf2 {[%clk
00:12:33]} {[%emt 00:00:52]} Nxa1 {[%clk 00:12:51]} {[%emt 00:00:04]} 18. Nxf7
{[%clk 00:12:30]} {[%emt 00:00:05]} Qxd3 {[%clk 00:12:41]} {[%emt 00:00:14]} 19.
Ned6+ {[%clk 00:11:48]} {[%emt 00:00:45]} Kf8 {[%clk 00:10:57]} {[%emt
00:01:47]} 20. Nxh8 {[%clk 00:11:34]} {[%emt 00:00:16]} Nd4 {[%clk 00:10:40]}
{[%emt 00:00:21]} 21. Ng6+ {[%clk 00:11:21]} {[%emt 00:00:16]} Qxg6 {[%clk
00:10:39]} {[%emt 00:00:05]} 22. Qxg6 {[%clk 00:10:48]} {[%emt 00:00:36]} Ne2#
{[%clk 00:10:40]} {[%emt 00:00:01]} 23. Qd3 {[%emt 00:00:07]} 0-1

[Event "Paul Kerese Mälestusfestival 2022 Kiirturniir"]
[Site "Pärnu, Estonia Resort Hotel & Spa"]
[Date "2022.07.23"]
[Round "4.5"]
[White "Kivioja, Endel"]
[Black "Shvyrjov, Igor"]
[Result "1/2-1/2"]
[TimeControl "15 minutit partiile + 3 sek käigule"]
[BlackTitle "GM"]
[WhiteElo "2142"]
[BlackElo "2153"]

1. e4 {[%clk 00:15:04]} {[%emt 00:00:02]} g6 {[%clk 00:15:05]} {[%emt
00:00:01]} 2. d4 {[%clk 00:15:03]} {[%emt 00:00:03]} Bg7 {[%clk 00:15:07]} 3.
Nf3 {[%clk 00:15:05]} {[%emt 00:00:01]} d6 {[%clk 00:15:10]} 4. g3 {[%clk
00:14:52]} {[%emt 00:00:16]} c6 {[%clk 00:15:07]} {[%emt 00:00:06]} 5. Bg2
{[%clk 00:14:53]} {[%emt 00:00:02]} Nf6 {[%clk 00:15:04]} {[%emt 00:00:06]} 6.
Nc3 {[%clk 00:14:51]} {[%emt 00:00:05]} O-O {[%clk 00:15:04]} {[%emt 00:00:03]}
7. O-O {[%clk 00:14:53]} {[%emt 00:00:02]} Bg4 {[%clk 00:15:03]} {[%emt
00:00:03]} 8. a4 {[%clk 00:14:45]} {[%emt 00:00:11]} a5 {[%clk 00:15:05]}
{[%emt 00:00:02]} 9. h3 {[%clk 00:14:44]} {[%emt 00:00:04]} Bxf3 {[%clk
00:15:06]} {[%emt 00:00:02]} 10. Bxf3 {[%clk 00:14:45]} {[%emt 00:00:01]} Nbd7
{[%clk 00:14:58]} {[%emt 00:00:11]} 11. Be3 {[%clk 00:14:45]} {[%emt 00:00:04]}
Re8 {[%clk 00:14:48]} {[%emt 00:00:12]} 12. Bg2 {[%clk 00:14:46]} {[%emt
00:00:01]} e5 {[%clk 00:14:48]} {[%emt 00:00:04]} 13. Re1 {[%clk 00:14:48]}
{[%emt 00:00:01]} Qc7 {[%clk 00:14:39]} {[%emt 00:00:12]} 14. Qd2 {[%clk
00:14:12]} {[%emt 00:00:39]} Rad8 {[%clk 00:14:38]} {[%emt 00:00:04]} 15. Rad1
{[%clk 00:14:05]} {[%emt 00:00:09]} Nf8 {[%clk 00:14:32]} {[%emt 00:00:09]} 16.
d5 {[%clk 00:13:54]} {[%emt 00:00:14]} cxd5 {[%clk 00:14:28]} {[%emt 00:00:08]}
17. exd5 {[%clk 00:13:39]} {[%emt 00:00:18]} b6 {[%clk 00:13:43]} {[%emt
00:00:48]} 18. Nb5 {[%clk 00:13:32]} {[%emt 00:00:10]} Qb8 {[%clk 00:13:37]}
{[%emt 00:00:09]} 19. b4 {[%clk 00:13:14]} {[%emt 00:00:22]} axb4 {[%clk
00:13:18]} {[%emt 00:00:22]} 20. Qxb4 {[%clk 00:13:14]} {[%emt 00:00:02]} Re7
{[%clk 00:13:21]} {[%emt 00:00:01]} 21. Rb1 {[%clk 00:12:06]} {[%emt 00:01:10]}
Ne8 {[%clk 00:13:21]} {[%emt 00:00:03]} 22. Nc3 {[%clk 00:11:47]} {[%emt
00:00:22]} Rc8 {[%clk 00:12:49]} {[%emt 00:00:35]} 23. Bxb6 {[%clk 00:11:02]}
{[%emt 00:00:48]} Rb7 {[%clk 00:12:44]} {[%emt 00:00:08]} 24. a5 {[%clk
00:11:04]} {[%emt 00:00:01]} Nd7 {[%clk 00:12:46]} 25. Na4 {[%clk 00:09:39]}
{[%emt 00:01:28]} Nxb6 {[%clk 00:12:10]} {[%emt 00:00:40]} 26. Nxb6 {[%clk
00:09:27]} {[%emt 00:00:14]} Rxc2 {[%clk 00:11:55]} {[%emt 00:00:17]} 27. a6
{[%clk 00:08:56]} {[%emt 00:00:35]} Ra7 {[%clk 00:11:58]} 28. Qa4 {[%clk
00:08:41]} {[%emt 00:00:18]} Rcc7 {[%clk 00:11:28]} {[%emt 00:00:32]} 29. Bf1
{[%clk 00:07:38]} {[%emt 00:01:05]} Qd8 {[%clk 00:11:07]} {[%emt 00:00:25]} 30.
Bb5 {[%clk 00:07:21]} {[%emt 00:00:19]} Re7 {[%clk 00:09:54]} {[%emt 00:01:16]}
31. Bc6 {[%clk 00:05:46]} {[%emt 00:01:38]} h5 {[%clk 00:09:52]} {[%emt
00:00:04]} 32. h4 {[%clk 00:05:36]} {[%emt 00:00:14]} f5 {[%clk 00:09:19]}
{[%emt 00:00:36]} 33. Bb7 {[%clk 00:05:25]} {[%emt 00:00:13]} f4 {[%clk
00:08:55]} {[%emt 00:00:27]} 34. Nc8 {[%clk 00:05:20]} {[%emt 00:00:08]} Rexb7
{[%clk 00:08:43]} {[%emt 00:00:15]} 35. axb7 {[%clk 00:05:19]} {[%emt
00:00:05]} Rxa4 {[%clk 00:08:45]} {[%emt 00:00:01]} 36. b8=Q {[%clk 00:05:17]}
{[%emt 00:00:05]} fxg3 {[%clk 00:08:47]} {[%emt 00:00:01]} 37. fxg3 {[%clk
00:05:10]} {[%emt 00:00:09]} e4 {[%clk 00:08:36]} {[%emt 00:00:14]} 38. Nxd6
{[%clk 00:04:06]} {[%emt 00:01:07]} Qxd6 {[%clk 00:08:05]} {[%emt 00:00:35]} 39.
Qxe8+ {[%clk 00:04:05]} {[%emt 00:00:03]} Kh7 {[%clk 00:08:07]} 40. Qxa4 {[%clk
00:01:37]} {[%emt 00:02:32]} Qxg3+ {[%clk 00:08:09]} {[%emt 00:00:01]} 41. Kf1
{[%clk 00:01:34]} {[%emt 00:00:05]} Qf3+ {[%clk 00:08:10]} {[%emt 00:00:02]} 42.
Kg1 {[%clk 00:01:36]} Qg4+ {[%clk 00:08:12]} {[%emt 00:00:03]} 43. Kf1 {[%clk
00:01:37]} {[%emt 00:00:01]} Qf3+ {[%clk 00:08:09]} {[%emt 00:00:06]} 44. Kg1
{[%clk 00:01:39]} Qg3+ {[%clk 00:07:49]} {[%emt 00:00:23]} 45. Kf1 {[%clk
00:01:42]} Qd3+ {[%clk 00:07:38]} {[%emt 00:00:14]} 46. Kg2 {[%clk 00:01:35]}
{[%emt 00:00:09]} Qd2+ {[%clk 00:05:34]} {[%emt 00:02:08]} 47. Kf1 {[%clk
00:01:25]} {[%emt 00:00:12]} Qd3+ {[%clk 00:04:24]} {[%emt 00:01:14]} 48. Kg2
{[%clk 00:01:21]} {[%emt 00:00:07]} Qf3+ {[%clk 00:03:47]} {[%emt 00:00:40]} 49.
Kg1 {[%clk 00:01:19]} {[%emt 00:00:04]} Qg3+ {[%clk 00:03:34]} {[%emt
00:00:17]} 50. Kf1 {[%clk 00:01:21]} {[%emt 00:00:01]} Qh3+ {[%clk 00:02:26]}
{[%emt 00:01:11]} 51. Kg1 {[%clk 00:01:05]} {[%emt 00:00:19]} Qg4+ {[%clk
00:01:36]} {[%emt 00:00:54]} 52. Kf1 {[%clk 00:01:04]} {[%emt 00:00:04]} Qf3+
{[%clk 00:01:22]} {[%emt 00:00:16]} 53. Kg1 {[%clk 00:01:06]} {[%emt 00:00:01]}
Qg3+ {[%clk 00:01:23]} {[%emt 00:00:03]} 1/2-1/2

[Event "Paul Kerese Mälestusfestival 2022 Kiirturniir"]
[Site "Pärnu, Estonia Resort Hotel & Spa"]
[Date "2022.07.23"]
[Round "4.6"]
[White "Heinmets, Tõnu"]
[Black "Dzjuba, Jegor"]
[Result "1-0"]
[TimeControl "15 minutit partiile + 3 sek käigule"]
[WhiteElo "1993"]
[BlackElo "1629"]

1. Nf3 {[%clk 00:15:03]} {[%emt 00:00:03]} d5 {[%clk 00:15:04]} {[%emt
00:00:02]} 2. g3 {[%clk 00:15:05]} {[%emt 00:00:02]} Nf6 {[%clk 00:15:02]}
{[%emt 00:00:05]} 3. Bg2 {[%clk 00:15:06]} {[%emt 00:00:01]} c5 {[%clk
00:14:59]} {[%emt 00:00:06]} 4. O-O {[%clk 00:15:07]} {[%emt 00:00:02]} Nc6
{[%clk 00:15:00]} {[%emt 00:00:02]} 5. d3 {[%clk 00:15:08]} {[%emt 00:00:03]}
e5 {[%clk 00:14:55]} {[%emt 00:00:08]} 6. Nbd2 {[%clk 00:13:29]} {[%emt
00:01:41]} Be7 {[%clk 00:14:35]} {[%emt 00:00:22]} 7. e4 {[%clk 00:13:30]}
{[%emt 00:00:02]} dxe4 {[%clk 00:13:25]} {[%emt 00:01:14]} 8. dxe4 {[%clk
00:13:32]} {[%emt 00:00:01]} O-O {[%clk 00:13:23]} {[%emt 00:00:05]} 9. a4
{[%clk 00:13:34]} {[%emt 00:00:02]} Qc7 {[%clk 00:13:16]} {[%emt 00:00:09]} 10.
Qe2 {[%clk 00:13:15]} {[%emt 00:00:23]} Nd4 {[%clk 00:12:12]} {[%emt 00:01:07]}
11. Qd1 {[%clk 00:13:08]} {[%emt 00:00:09]} Rd8 {[%clk 00:11:52]} {[%emt
00:00:23]} 12. c3 {[%clk 00:12:58]} {[%emt 00:00:13]} Ne6 {[%clk 00:11:37]}
{[%emt 00:00:17]} 13. Qc2 {[%clk 00:12:47]} {[%emt 00:00:15]} c4 {[%clk
00:11:15]} {[%emt 00:00:25]} 14. Re1 {[%clk 00:12:46]} {[%emt 00:00:04]} Bd7
{[%clk 00:11:16]} {[%emt 00:00:02]} 15. Bf1 {[%clk 00:12:36]} {[%emt 00:00:13]}
b5 {[%clk 00:10:58]} {[%emt 00:00:22]} 16. axb5 {[%clk 00:11:22]} {[%emt
00:01:17]} Bxb5 {[%clk 00:10:59]} {[%emt 00:00:01]} 17. b3 {[%clk 00:11:24]}
{[%emt 00:00:02]} cxb3 {[%clk 00:10:45]} {[%emt 00:00:16]} 18. Qxb3 {[%clk
00:11:25]} {[%emt 00:00:03]} Bxf1 {[%clk 00:10:41]} {[%emt 00:00:07]} 19. Nxf1
{[%clk 00:11:26]} {[%emt 00:00:02]} Rd3 {[%clk 00:09:41]} {[%emt 00:01:03]} 20.
Re3 {[%clk 00:10:45]} {[%emt 00:00:44]} Nc5 {[%clk 00:09:29]} {[%emt 00:00:15]}
21. Qc4 {[%clk 00:10:27]} {[%emt 00:00:21]} Rxe3 {[%clk 00:06:49]} {[%emt
00:02:43]} 22. Nxe3 {[%clk 00:10:27]} {[%emt 00:00:03]} Nfxe4 {[%clk 00:05:42]}
{[%emt 00:01:10]} 23. Nd5 {[%clk 00:10:29]} Qd6 {[%clk 00:05:39]} {[%emt
00:00:06]} 24. Nxe7+ {[%clk 00:10:29]} {[%emt 00:00:03]} Qxe7 {[%clk 00:05:39]}
{[%emt 00:00:03]} 25. Ba3 {[%clk 00:10:31]} {[%emt 00:00:01]} Qe6 {[%clk
00:04:57]} {[%emt 00:00:44]} 26. Qxe6 {[%clk 00:09:58]} {[%emt 00:00:37]} Nxe6
{[%clk 00:04:58]} {[%emt 00:00:02]} 27. Nxe5 {[%clk 00:09:28]} {[%emt
00:00:32]} Nxc3 {[%clk 00:04:58]} {[%emt 00:00:04]} 28. Bb4 {[%clk 00:09:07]}
{[%emt 00:00:24]} Nd5 {[%clk 00:04:46]} {[%emt 00:00:14]} 29. Bd2 {[%clk
00:08:41]} {[%emt 00:00:29]} f6 {[%clk 00:04:06]} {[%emt 00:00:44]} 30. Nc6
{[%clk 00:08:36]} {[%emt 00:00:08]} a6 {[%clk 00:03:58]} {[%emt 00:00:11]} 31.
h4 {[%clk 00:08:04]} {[%emt 00:00:36]} Kf7 {[%clk 00:03:40]} {[%emt 00:00:21]}
32. h5 {[%clk 00:08:04]} {[%emt 00:00:03]} Ne7 {[%clk 00:03:36]} {[%emt
00:00:07]} 33. Na5 {[%clk 00:07:31]} {[%emt 00:00:36]} Rd8 {[%clk 00:03:02]}
{[%emt 00:00:37]} 34. Be3 {[%clk 00:07:32]} {[%emt 00:00:01]} Rd5 {[%clk
00:03:01]} {[%emt 00:00:04]} 35. h6 {[%clk 00:07:23]} {[%emt 00:00:12]} g5
{[%clk 00:02:56]} {[%emt 00:00:07]} 36. Nc4 {[%clk 00:07:18]} {[%emt 00:00:08]}
Nf5 {[%clk 00:01:45]} {[%emt 00:01:14]} 37. Rxa6 {[%clk 00:07:19]} {[%emt
00:00:03]} Nxh6 {[%clk 00:01:33]} {[%emt 00:00:15]} 38. Nd6+ {[%clk 00:06:07]}
{[%emt 00:01:15]} Ke7 {[%clk 00:01:15]} {[%emt 00:00:21]} 39. Ne4 {[%clk
00:05:53]} {[%emt 00:00:17]} Rd7 {[%clk 00:01:03]} {[%emt 00:00:16]} 40. Nc5
{[%clk 00:04:46]} {[%emt 00:01:10]} Nxc5 {[%clk 00:00:51]} {[%emt 00:00:14]} 41.
Bxc5+ {[%clk 00:04:48]} {[%emt 00:00:01]} Kf7 {[%clk 00:00:53]} {[%emt
00:00:01]} 42. Kg2 {[%clk 00:04:45]} {[%emt 00:00:06]} Nf5 {[%clk 00:00:41]}
{[%emt 00:00:15]} 43. Bb4 {[%clk 00:04:39]} {[%emt 00:00:08]} Ne7 {[%clk
00:00:32]} {[%emt 00:00:13]} 44. Bc3 {[%clk 00:04:28]} {[%emt 00:00:14]} Nd5
{[%clk 00:00:33]} {[%emt 00:00:02]} 45. Ba1 {[%clk 00:04:29]} {[%emt 00:00:03]}
h5 {[%clk 00:00:25]} {[%emt 00:00:11]} 46. Kf3 {[%clk 00:04:04]} {[%emt
00:00:27]} Kg6 {[%clk 00:00:04]} {[%emt 00:00:24]} 47. Ke4 {[%clk 00:04:01]}
{[%emt 00:00:06]} Kf7 {[%clk 00:00:04]} {[%emt 00:00:04]} 48. f3 {[%clk
00:03:49]} {[%emt 00:00:15]} Kg7 {[%clk 00:00:04]} {[%emt 00:00:03]} 49. Ra5
{[%clk 00:03:43]} {[%emt 00:00:09]} Ne7 {[%clk 00:00:04]} {[%emt 00:00:03]} 50.
Rxg5+ {[%clk 00:03:43]} {[%emt 00:00:02]} Kh6 {[%clk 00:00:05]} {[%emt
00:00:02]} 51. Bxf6 {[%clk 00:03:32]} {[%emt 00:00:14]} Ng6 {[%clk 00:00:06]}
{[%emt 00:00:04]} 52. Rd5 {[%clk 00:03:21]} {[%emt 00:00:13]} Ra7 {[%clk
00:00:04]} {[%emt 00:00:05]} 53. Bg5+ {[%clk 00:03:22]} {[%emt 00:00:02]} Kg7
{[%clk 00:00:05]} {[%emt 00:00:02]} 54. Be3 {[%clk 00:03:19]} {[%emt 00:00:06]}
Ra4+ {[%clk 00:00:07]} {[%emt 00:00:02]} 55. Bd4+ {[%clk 00:03:11]} {[%emt
00:00:11]} Kf7 {[%clk 00:00:06]} {[%emt 00:00:04]} 56. Rxh5 {[%clk 00:03:09]}
{[%emt 00:00:04]} Ne7 {[%clk 00:00:06]} {[%emt 00:00:02]} 57. Rh7+ {[%clk
00:03:06]} {[%emt 00:00:06]} Ke8 {[%clk 00:00:06]} {[%emt 00:00:03]} 58. Rh6
{[%clk 00:02:52]} {[%emt 00:00:17]} Kd7 {[%clk 00:00:05]} {[%emt 00:00:05]} 59.
Rh5 {[%clk 00:02:11]} {[%emt 00:00:44]} Nc6 {[%clk 00:00:04]} {[%emt 00:00:05]}
60. Rd5+ {[%emt 00:00:01]} Ke7 61. g4 {[%clk 00:02:09]} {[%emt 00:00:06]} Nb4
{[%clk 00:00:09]} 62. Bc5+ {[%clk 00:02:06]} {[%emt 00:00:06]} Ke6 {[%clk
00:00:09]} {[%emt 00:00:03]} 63. Rd4 {[%clk 00:02:05]} {[%emt 00:00:03]} Ra5
{[%clk 00:00:04]} {[%emt 00:00:09]} 64. Bxb4 {[%clk 00:02:04]} {[%emt
00:00:03]} Rb5 {[%clk 00:00:06]} {[%emt 00:00:01]} 65. Bd6 {[%clk 00:01:59]}
{[%emt 00:00:07]} Kf6 {[%clk 00:00:08]} {[%emt 00:00:02]} 66. f4 {[%clk
00:02:01]} {[%emt 00:00:01]} Kg6 {[%clk 00:00:10]} {[%emt 00:00:01]} 67. Be5
{[%clk 00:02:01]} {[%emt 00:00:03]} Kf7 {[%clk 00:00:12]} 68. Kf5 {[%clk
00:02:01]} {[%emt 00:00:02]} Ke7 {[%clk 00:00:15]} 69. g5 {[%clk 00:02:03]}
{[%emt 00:00:02]} Kf7 {[%clk 00:00:17]} 70. Rd7+ {[%clk 00:02:03]} {[%emt
00:00:02]} Ke8 {[%clk 00:00:20]} 71. Ra7 {[%clk 00:02:03]} {[%emt 00:00:04]}
Kf8 {[%clk 00:00:21]} {[%emt 00:00:01]} 72. Ke6 {[%clk 00:02:03]} {[%emt
00:00:04]} Kg8 {[%clk 00:00:22]} {[%emt 00:00:02]} 73. g6 {[%clk 00:02:00]}
{[%emt 00:00:06]} Rb6+ {[%clk 00:00:21]} {[%emt 00:00:04]} 74. Bd6 {[%clk
00:02:01]} Kh8 {[%clk 00:00:20]} {[%emt 00:00:05]} 75. f5 {[%clk 00:02:00]}
{[%emt 00:00:04]} Kg8 {[%clk 00:00:21]} {[%emt 00:00:02]} 76. f6 {[%clk
00:02:02]} {[%emt 00:00:01]} Kh8 {[%clk 00:00:21]} {[%emt 00:00:02]} 77. Ra8+
{[%emt 00:00:02]} 1-0